fUSD/lending_fUSD_20250507
["ID","MTS","AMOUNT","RATE_DAILY","PERIOD"]
[360163945,1746585039675,-450.0,0.00019573,2]
[360163946,1746585039684,-450.0,0.00019573,2]
[360163947,1746585039693,-450.0,0.00019573,2]
[360163948,1746585039703,-450.0,0.00019573,2]
[360163949,1746585039712,-698.93,0.00019573,2]
[360163950,1746585039721,-450.0,0.00019573,2]
[360163951,1746585039730,-450.0,0.00019573,2]
[360163952,1746585039739,-450.0,0.00019573,2]
[360163953,1746585039749,-450.0,0.00019573,2]
[360163954,1746585039758,-450.0,0.00019573,2]
[360163955,1746585039768,-500.0,0.00019573,2]
[360163956,1746585039985,-500.0,0.00019573,2]
[360163957,1746585039994,-577.56888401,0.00019573,2]
[360163958,1746585040003,-500.0,0.00019573,2]
[360163959,1746585040017,-386.64585157,0.00019573,2]
[360163960,1746585040031,-113.35414843,0.00019573,2]
[360163961,1746585040040,-450.0,0.00019573,2]
[360163962,1746585040051,-450.0,0.00019573,2]
[360163963,1746585040060,-450.0,0.00019573,2]
[360163964,1746585040070,-450.0,0.00019573,2]
[360163965,1746585040079,-487.27,0.00019573,2]
[360163966,1746585040088,-487.27,0.00019573,2]
[360163967,1746585040098,-1417.96,0.00019573,2]
[360163968,1746585040107,-450.0,0.00019573,2]
[360163969,1746585040116,-914.5,0.00019573,2]
[360163970,1746585040126,-450.0,0.00019573,2]
[360163971,1746585040135,-450.0,0.00019573,2]
[360163972,1746585040144,-1018.01,0.00019573,2]
[360163973,1746585040153,-572.62,0.00019573,2]
[360163974,1746585040162,-450.0,0.00019573,2]
[360163975,1746585040171,-450.0,0.00019573,2]
[360163976,1746585040180,-450.0,0.00019573,2]
[360163977,1746585040190,-1411.93,0.00019573,2]
[360163978,1746585040199,-454.92950652,0.00019573,2]
[360163979,1746585040208,-450.0,0.00019573,2]
[360163980,1746585040217,-1177.15,0.00019573,2]
[360163981,1746585040226,-492.97,0.00019573,2]
[360163982,1746585040236,-450.0,0.00019573,2]
[360163983,1746585040245,-633.14,0.00019573,2]
[360163984,1746585040254,-450.0,0.00019573,2]
[360163985,1746585040263,-1240.06,0.00019573,2]
[360163986,1746585040271,-450.0,0.00019573,2]
[360163987,1746585040280,-797.15,0.00019573,2]
[360163988,1746585040289,-450.0,0.00019573,2]
[360163989,1746585040298,-379.78681423,0.00019573,2]
[360163990,1746585040307,-670.46,0.00019573,2]
[360163991,1746585040316,-450.0,0.00019573,2]
[360163992,1746585040325,-450.0,0.00019573,2]
[360163993,1746585040334,-450.0,0.00019573,2]
[360163994,1746585040343,-450.0,0.00019573,2]
[360163995,1746585040352,-450.0,0.00019573,2]
[360163996,1746585040361,-450.0,0.00019573,2]
[360163997,1746585040370,-1378.23,0.00019573,2]
[360163998,1746585040379,-1470.05,0.00019573,2]
[360163999,1746585040389,-450.0,0.00019573,2]
[360164000,1746585040398,-450.0,0.00019573,2]
[360164001,1746585040408,-450.0,0.00019573,2]
[360164002,1746585040417,-1459.64,0.00019573,2]
[360164003,1746585040426,-450.0,0.00019573,2]
[360164004,1746585040436,-962.53,0.00019573,2]
[360164005,1746585040446,-962.53,0.00019573,2]
[360164006,1746585040455,-450.0,0.00019573,2]
[360164007,1746585040464,-450.0,0.00019573,2]
[360164008,1746585040474,-469.41,0.00019573,2]
[360164009,1746585040483,-450.0,0.00019573,2]
[360164010,1746585040492,-450.0,0.00019573,2]
[360164011,1746585040501,-1019.78,0.00019573,2]
[360164012,1746585040511,-999.03308082,0.00019573,2]
[360164013,1746585040524,-20.74691918,0.00019573,2]
[360164014,1746585040533,-450.0,0.00019573,2]
[360164015,1746585040542,-450.0,0.00019573,2]
[360164016,1746585040552,-450.0,0.00019573,2]
[360164017,1746585040561,-450.0,0.00019573,2]
[360164018,1746585040571,-450.0,0.00019573,2]
[360164019,1746585040580,-589.64,0.00019573,2]
[360164020,1746585040590,-450.0,0.00019573,2]
[360164021,1746585040599,-503.97708224,0.00019573,2]
[360164022,1746585040609,-1343.39,0.00019573,2]
[360164023,1746585040618,-450.0,0.00019573,2]
[360164024,1746585040628,-450.0,0.00019573,2]
[360164025,1746585040637,-450.0,0.00019573,2]
[360164026,1746585040646,-450.0,0.00019573,2]
[360164027,1746585040656,-450.0,0.00019573,2]
[360164028,1746585040666,-450.0,0.00019573,2]
[360164029,1746585040676,-28053.47,0.00019573,2]
[360164030,1746585040686,-1093.11,0.00019573,2]
[360164031,1746585040695,-591.55,0.00019573,2]
[360164032,1746585040705,-591.55,0.00019573,2]
[360164033,1746585040715,-450.0,0.00019573,2]
[360164034,1746585040724,-450.0,0.00019573,2]
[360164035,1746585040734,-450.0,0.00019573,2]
[360164036,1746585040743,-450.0,0.00019573,2]
[360164037,1746585040753,-450.0,0.00019573,2]
[360164038,1746585040763,-450.0,0.00019573,2]
[360164039,1746585040772,-450.0,0.00019573,2]
[360164040,1746585040781,-537.49,0.00019573,2]
[360164041,1746585040791,-537.49,0.00019573,2]
[360164042,1746585040801,-650.72,0.00019573,2]
[360164043,1746585040810,-3175.42,0.00019573,2]
[360164044,1746585040819,-450.0,0.00019573,2]
[360164045,1746585040829,-450.0,0.00019573,2]
[360164046,1746585040838,-735.84,0.00019573,2]
[360164047,1746585040847,-450.0,0.00019573,2]
[360164048,1746585040856,-450.0,0.00019573,2]
[360164049,1746585040865,-450.0,0.00019573,2]
[360164050,1746585040875,-450.0,0.00019573,2]
[360164051,1746585040884,-165.84494863,0.00019573,2]
[360164052,1746585040895,-284.15505137,0.00019573,2]
[360164053,1746585040905,-31066.12,0.00019573,2]
[360164054,1746585040914,-589.42,0.00019573,2]
[360164055,1746585040923,-606.35,0.00019573,2]
[360164056,1746585040932,-606.35,0.00019573,2]
[360164057,1746585040941,-450.0,0.00019573,2]
[360164058,1746585040951,-929.13,0.00019573,2]
[360164059,1746585040959,-450.0,0.00019573,2]
[360164060,1746585040969,-450.0,0.00019573,2]
[360164061,1746585040978,-109.17494863,0.00019573,2]
[360164062,1746585040989,-340.82505137,0.00019573,2]
[360164063,1746585040998,-404.77494843,0.00019573,2]
[360164064,1746585041243,-45.22505157,0.00019573,2]
[360164065,1746585041252,-450.0,0.00019573,2]
[360164066,1746585041262,-450.0,0.00019573,2]
[360164067,1746585041272,-450.0,0.00019573,2]
[360164068,1746585041282,-1020.37,0.00019573,2]
[360164069,1746585041293,-1946.37,0.00019573,2]
[360164070,1746585041303,-450.0,0.00019573,2]
[360164071,1746585041313,-450.0,0.00019573,2]
[360164072,1746585041323,-450.0,0.00019573,2]
[360164073,1746585041333,-450.0,0.00019573,2]
[360164074,1746585041342,-450.0,0.00019573,2]
[360164075,1746585041351,-450.0,0.00019573,2]
[360164076,1746585041361,-450.0,0.00019573,2]
[360164077,1746585041371,-450.0,0.00019573,2]
[360164078,1746585041380,-7030.76,0.00019573,2]
[360164079,1746585041389,-1352.82,0.00019573,2]
[360164080,1746585041399,-450.0,0.00019573,2]
[360164081,1746585041408,-450.0,0.00019573,2]
[360164082,1746585041417,-450.0,0.00019573,2]
[360164083,1746585041426,-623.69,0.00019573,2]
[360164084,1746585041435,-500.0,0.00019573,2]
[360164085,1746585041445,-455.14,0.00019573,2]
[360164086,1746585041454,-455.34,0.00019573,2]
[360164087,1746585041463,-1013.72,0.00019573,2]
[360164088,1746585041473,-511.14934025,0.00019573,2]
[360164089,1746585041482,-443.81885455,0.00019573,2]
[360164090,1746585041491,-450.0,0.00019573,2]
[360164091,1746585041500,-5813.14,0.00019573,2]
[360164092,1746585041510,-450.0,0.00019573,2]
[360164093,1746585041519,-450.0,0.00019573,2]
[360164094,1746585041528,-1816.9,0.00019573,2]
[360164095,1746585041537,-450.0,0.00019573,2]
[360164096,1746585041547,-350.0,0.00019573,2]
[360164097,1746585041556,-450.0,0.00019573,2]
[360164098,1746585041565,-1220.13,0.00019573,2]
[360164099,1746585041575,-500.0,0.00019573,2]
[360164100,1746585041584,-450.0,0.00019573,2]
[360164101,1746585041595,-450.0,0.00019573,2]
[360164102,1746585041604,-450.0,0.00019573,2]
[360164103,1746585041613,-450.0,0.00019573,2]
[360164104,1746585041623,-453.79,0.00019573,2]
[360164105,1746585041633,-450.0,0.00019573,2]
[360164106,1746585041643,-163.95326583,0.00019573,2]
[360164107,1746585041653,-408.46385219,0.00019573,2]
[360164108,1746585041662,-450.0,0.00019573,2]
[360164109,1746585041672,-450.0,0.00019573,2]
[360164110,1746585041681,-2313.4,0.00019573,2]
[360164111,1746585041691,-576.39,0.00019573,2]
[360164112,1746585041700,-521.61,0.00019573,2]
[360164113,1746585041710,-450.0,0.00019573,2]
[360164114,1746585041719,-450.0,0.00019573,2]
[360164115,1746585041729,-496.71,0.00019573,2]
[360164116,1746585041739,-450.0,0.00019573,2]
[360164117,1746585041748,-450.0,0.00019573,2]
[360164118,1746585041758,-450.0,0.00019573,2]
[360164119,1746585041767,-450.0,0.00019573,2]
[360164120,1746585041776,-629.77,0.00019573,2]
[360164121,1746585041786,-450.0,0.00019573,2]
[360164122,1746585041795,-1268.26,0.00019573,2]
[360164123,1746585041805,-450.0,0.00019573,2]
[360164124,1746585041814,-564.73,0.00019573,2]
[360164125,1746585041824,-450.0,0.00019574,2]
[360164126,1746585041834,-450.0,0.00019574,2]
[360164127,1746585041843,-450.0,0.00019574,2]
[360164128,1746585041853,-450.0,0.00019574,2]
[360164129,1746585041862,-450.0,0.00019574,2]
[360164130,1746585041872,-450.0,0.00019574,2]
[360164131,1746585041881,-450.0,0.00019574,2]
[360164132,1746585041890,-450.0,0.00019574,2]
[360164133,1746585041900,-450.0,0.00019574,2]
[360164134,1746585041909,-450.0,0.00019574,2]
[360164135,1746585041919,-450.0,0.00019574,2]
[360164136,1746585041928,-450.0,0.00019574,2]
[360164137,1746585041937,-450.0,0.00019574,2]
[360164138,1746585041946,-450.0,0.00019574,2]
[360164139,1746585041955,-450.0,0.00019574,2]
[360164140,1746585041965,-463.95,0.00019574,2]
[360164141,1746585041974,-463.95,0.00019574,2]
[360164142,1746585041983,-450.0,0.00019574,2]
[360164143,1746585041992,-500.0,0.00019574,2]
[360164144,1746585042002,-450.0,0.00019574,2]
[360164145,1746585042015,-450.0,0.00019574,2]
[360164146,1746585042024,-450.0,0.00019574,2]
[360164147,1746585042033,-450.0,0.00019574,2]
[360164148,1746585042043,-169.42777828,0.00019574,2]
[360164149,1746585042053,-450.0,0.00019574,2]
[360164150,1746585042062,-450.0,0.00019574,2]
[360164151,1746585042072,-450.0,0.00019574,2]
[360164152,1746585042082,-450.0,0.00019574,2]
[360164153,1746585042091,-450.0,0.00019574,2]
[360164154,1746585042101,-450.0,0.00019574,2]
[360164155,1746585042110,-466.69,0.00019574,2]
[360164156,1746585042119,-450.0,0.00019574,2]
[360164157,1746585042128,-450.0,0.00019574,2]
[360164158,1746585042138,-450.0,0.00019574,2]
[360164159,1746585042147,-450.0,0.00019574,2]
[360164160,1746585042156,-450.0,0.00019574,2]
[360164161,1746585042166,-450.0,0.00019574,2]
[360164162,1746585042175,-450.0,0.00019574,2]
[360164163,1746585042185,-450.0,0.00019574,2]
[360164164,1746585042194,-450.0,0.00019574,2]
[360164165,1746585042204,-450.0,0.00019574,2]
[360164166,1746585042214,-450.0,0.00019574,2]
[360164167,1746585042224,-450.0,0.00019574,2]
[360164168,1746585042233,-450.0,0.00019574,2]
[360164169,1746585042242,-450.0,0.00019574,2]
[360164170,1746585042251,-450.0,0.00019574,2]
[360164171,1746585042260,-450.0,0.00019574,2]
[360164172,1746585042269,-450.0,0.00019574,2]
[360164173,1746585042279,-335.38889523,0.00019574,2]
[360164174,1746585042288,-450.0,0.00019574,2]
[360164175,1746585042296,-450.0,0.00019574,2]
[360164176,1746585042306,-450.0,0.00019574,2]
[360164177,1746585042315,-450.0,0.00019574,2]
[360164178,1746585042324,-450.0,0.00019574,2]
[360164179,1746585042334,-450.0,0.00019574,2]
[360164180,1746585042343,-544.5,0.00019574,2]
[360164181,1746585042352,-628.9,0.00019574,2]
[360164182,1746585042362,-339.39642836,0.00019574,2]
[360164183,1746585042371,-524.05,0.00019574,2]
[360164184,1746585042380,-544.43,0.00019574,2]
[360164185,1746585042389,-450.0,0.00019574,2]
[360164186,1746585042397,-744.52,0.00019574,2]
[360164187,1746585042407,-450.0,0.00019574,2]
[360164188,1746585042416,-466.36,0.00019574,2]
[360164189,1746585042425,-786.67,0.00019574,2]
[360164190,1746585042434,-450.0,0.00019574,2]
[360164191,1746585042444,-450.0,0.00019574,2]
[360164192,1746585042454,-450.0,0.00019574,2]
[360164193,1746585042463,-450.0,0.00019574,2]
[360164194,1746585042473,-450.0,0.00019574,2]
[360164195,1746585042482,-450.0,0.00019574,2]
[360164196,1746585042491,-450.0,0.00019574,2]
[360164197,1746585042500,-450.0,0.00019574,2]
[360164198,1746585042509,-450.0,0.00019574,2]
[360164199,1746585042519,-698.93,0.00019574,2]
[360164200,1746585042528,-450.0,0.00019574,2]
[360164201,1746585042537,-450.0,0.00019574,2]
[360164202,1746585042547,-450.0,0.00019574,2]
[360164203,1746585042556,-450.0,0.00019574,2]
[360164204,1746585042565,-450.0,0.00019574,2]
[360164205,1746585042575,-450.0,0.00019574,2]
[360164206,1746585042585,-450.0,0.00019574,2]
[360164207,1746585042594,-450.0,0.00019574,2]
[360164208,1746585042604,-487.27,0.00019574,2]
[360164209,1746585042613,-1417.96,0.00019574,2]
[360164210,1746585042623,-914.5,0.00019574,2]
[360164211,1746585042632,-1018.01,0.00019574,2]
[360164212,1746585042642,-450.0,0.00019574,2]
[360164213,1746585042651,-572.62,0.00019574,2]
[360164214,1746585042660,-450.0,0.00019574,2]
[360164215,1746585042670,-450.0,0.00019574,2]
[360164216,1746585042679,-1411.93,0.00019574,2]
[360164217,1746585042689,-450.0,0.00019574,2]
[360164218,1746585042698,-1177.15,0.00019574,2]
[360164219,1746585042707,-492.97,0.00019574,2]
[360164220,1746585042718,-506.08,0.00019574,2]
[360164221,1746585042727,-633.14,0.00019574,2]
[360164222,1746585042736,-450.0,0.00019574,2]
[360164223,1746585042745,-1240.06,0.00019574,2]
[360164224,1746585042755,-797.15,0.00019574,2]
[360164225,1746585042764,-670.46,0.00019574,2]
[360164226,1746585042773,-450.0,0.00019574,2]
[360164227,1746585042783,-450.0,0.00019574,2]
[360164228,1746585042792,-450.0,0.00019574,2]
[360164229,1746585042802,-450.0,0.00019574,2]
[360164230,1746585042811,-450.0,0.00019574,2]
[360164231,1746585042820,-1378.23,0.00019574,2]
[360164232,1746585042830,-1470.05,0.00019574,2]
[360164233,1746585042838,-450.0,0.00019574,2]
[360164234,1746585042848,-450.0,0.00019574,2]
[360164236,1746585042857,-1459.64,0.00019574,2]
[360164238,1746585042867,-450.0,0.00019574,2]
[360164240,1746585042876,-962.53,0.00019574,2]
[360164242,1746585042886,-450.0,0.00019574,2]
[360164244,1746585042895,-450.0,0.00019574,2]
[360164246,1746585042904,-469.41,0.00019574,2]
[360164248,1746585042914,-458.14052005,0.00019574,2]
[360164249,1746585042923,-450.0,0.00019574,2]
[360164250,1746585042933,-1019.78,0.00019574,2]
[360164251,1746585042942,-1019.78,0.00019574,2]
[360164252,1746585042951,-450.0,0.00019574,2]
[360164253,1746585042961,-536.87193326,0.00019574,2]
[360164254,1746585042971,-450.0,0.00019574,2]
[360164256,1746585042979,-450.0,0.00019574,2]
[360164258,1746585042989,-589.64,0.00019574,2]
[360164260,1746585042998,-1343.39,0.00019574,2]
[360164262,1746585043009,-450.0,0.00019574,2]
[360164264,1746585043021,-450.0,0.00019574,2]
[360164265,1746585043030,-450.0,0.00019574,2]
[360164266,1746585043039,-450.0,0.00019574,2]
[360164267,1746585043049,-28053.47,0.00019574,2]
[360164268,1746585043059,-1093.11,0.00019574,2]
[360164269,1746585043068,-591.55,0.00019574,2]
[360164270,1746585043078,-591.55,0.00019574,2]
[360164271,1746585043089,-450.0,0.00019574,2]
[360164272,1746585043098,-450.0,0.00019574,2]
[360164273,1746585043108,-450.0,0.00019574,2]
[360164274,1746585043117,-450.0,0.00019574,2]
[360164275,1746585043127,-450.0,0.00019574,2]
[360164276,1746585043136,-450.0,0.00019574,2]
[360164277,1746585043146,-537.49,0.00019574,2]
[360164278,1746585043155,-537.49,0.00019574,2]
[360164279,1746585043164,-650.72,0.00019574,2]
[360164280,1746585043174,-3175.42,0.00019574,2]
[360164281,1746585043184,-735.84,0.00019574,2]
[360164282,1746585043192,-450.0,0.00019574,2]
[360164283,1746585043202,-450.0,0.00019574,2]
[360164284,1746585043213,-450.0,0.00019574,2]
[360164285,1746585043222,-450.0,0.00019574,2]
[360164286,1746585043231,-31066.12,0.00019574,2]
[360164287,1746585043241,-589.42,0.00019574,2]
[360164288,1746585043251,-606.35,0.00019574,2]
[360164289,1746585043260,-606.35,0.00019574,2]
[360164290,1746585043269,-450.0,0.00019574,2]
[360164291,1746585043279,-929.13,0.00019574,2]
[360164292,1746585043289,-450.0,0.00019574,2]
[360164293,1746585043298,-450.0,0.00019574,2]
[360164294,1746585043308,-450.0,0.00019574,2]
[360164295,1746585043317,-450.0,0.00019574,2]
[360164296,1746585043327,-1020.37,0.00019574,2]
[360164297,1746585043337,-1946.37,0.00019574,2]
[360164298,1746585043346,-450.0,0.00019574,2]
[360164299,1746585043356,-450.0,0.00019574,2]
[360164300,1746585043366,-450.0,0.00019574,2]
[360164301,1746585043376,-450.0,0.00019574,2]
[360164302,1746585043385,-450.0,0.00019574,2]
[360164303,1746585043395,-450.0,0.00019574,2]
[360164304,1746585043405,-450.0,0.00019574,2]
[360164305,1746585043414,-450.0,0.00019574,2]
[360164306,1746585043424,-7030.76,0.00019574,2]
[360164307,1746585043434,-1352.82,0.00019574,2]
[360164308,1746585043443,-450.0,0.00019574,2]
[360164309,1746585043452,-450.0,0.00019574,2]
[360164310,1746585043462,-623.69,0.00019574,2]
[360164311,1746585043471,-500.0,0.00019574,2]
[360164312,1746585043480,-455.14,0.00019574,2]
[360164313,1746585043490,-455.34,0.00019574,2]
[360164314,1746585043499,-1013.72,0.00019574,2]
[360164315,1746585043509,-450.0,0.00019574,2]
[360164316,1746585043519,-5813.14,0.00019574,2]
[360164317,1746585043529,-450.0,0.00019574,2]
[360164319,1746585043538,-1816.9,0.00019574,2]
[360164321,1746585043547,-551.78489072,0.00019574,2]
[360164323,1746585043556,-1220.13,0.00019574,2]
[360164325,1746585043566,-450.0,0.00019574,2]
[360164326,1746585043576,-450.0,0.00019574,2]
[360164327,1746585043585,-450.0,0.00019574,2]
[360164328,1746585043594,-453.79,0.00019574,2]
[360164329,1746585043603,-450.0,0.00019574,2]
[360164330,1746585043612,-450.0,0.00019574,2]
[360164331,1746585043621,-2313.4,0.00019574,2]
[360164332,1746585043631,-576.39,0.00019574,2]
[360164333,1746585043640,-450.0,0.00019574,2]
[360164334,1746585043649,-521.61,0.00019574,2]
[360164335,1746585043659,-450.0,0.00019574,2]
[360164336,1746585043667,-450.0,0.00019574,2]
[360164337,1746585043677,-496.71,0.00019574,2]
[360164338,1746585043686,-346.57892246,0.00019574,2]
[360164339,1746585043695,-450.0,0.00019574,2]
[360164340,1746585043704,-450.0,0.00019574,2]
[360164341,1746585043713,-629.77,0.00019574,2]
[360164342,1746585043722,-312.56,0.00019574,2]
[360164343,1746585043731,-1268.26,0.00019574,2]
[360164344,1746585043740,-450.0,0.00019574,2]
[360164345,1746585043750,-450.0,0.00019575,2]
[360164346,1746585043758,-450.0,0.00019575,2]
[360164347,1746585043945,-450.0,0.00019575,2]
[360164348,1746585043956,-450.0,0.00019575,2]
[360164349,1746585043967,-450.0,0.00019575,2]
[360164350,1746585043976,-450.0,0.00019575,2]
[360164351,1746585043985,-450.0,0.00019575,2]
[360164352,1746585043995,-450.0,0.00019575,2]
[360164353,1746585044005,-450.0,0.00019575,2]
[360164354,1746585044019,-450.0,0.00019575,2]
[360164355,1746585044028,-450.0,0.00019575,2]
[360164356,1746585044037,-463.95,0.00019575,2]
[360164357,1746585044047,-463.95,0.00019575,2]
[360164358,1746585044058,-450.0,0.00019575,2]
[360164359,1746585044068,-450.0,0.00019575,2]
[360164360,1746585044077,-450.0,0.00019575,2]
[360164361,1746585044087,-450.0,0.00019575,2]
[360164362,1746585044097,-450.0,0.00019575,2]
[360164363,1746585044107,-450.0,0.00019575,2]
[360164364,1746585044116,-450.0,0.00019575,2]
[360164365,1746585044127,-450.0,0.00019575,2]
[360164366,1746585044136,-450.0,0.00019575,2]
[360164367,1746585044146,-450.0,0.00019575,2]
[360164368,1746585044155,-450.0,0.00019575,2]
[360164369,1746585044164,-450.0,0.00019575,2]
[360164370,1746585044176,-628.9,0.00019575,2]
[360164371,1746585044186,-450.0,0.00019575,2]
[360164372,1746585044195,-744.52,0.00019575,2]
[360164373,1746585044205,-786.67,0.00019575,2]
[360164374,1746585044215,-450.0,0.00019575,2]
[360164375,1746585044224,-450.0,0.00019575,2]
[360164376,1746585044233,-450.0,0.00019575,2]
[360164377,1746585044243,-450.0,0.00019575,2]
[360164378,1746585044252,-450.0,0.00019575,2]
[360164379,1746585044262,-450.0,0.00019575,2]
[360164380,1746585044272,-450.0,0.00019575,2]
[360164381,1746585044282,-487.27,0.00019575,2]
[360164382,1746585044292,-450.0,0.00019575,2]
[360164383,1746585044302,-450.0,0.00019575,2]
[360164384,1746585044312,-450.0,0.00019575,2]
[360164385,1746585044322,-962.53,0.00019575,2]
[360164386,1746585044332,-450.0,0.00019575,2]
[360164387,1746585044343,-1019.78,0.00019575,2]
[360164388,1746585044354,-450.0,0.00019575,2]
[360164389,1746585044364,-450.0,0.00019575,2]
[360164390,1746585044376,-450.0,0.00019575,2]
[360164391,1746585044386,-591.55,0.00019575,2]
[360164392,1746585044396,-450.0,0.00019575,2]
[360164393,1746585044407,-450.0,0.00019575,2]
[360164394,1746585044417,-537.49,0.00019575,2]
[360164395,1746585044426,-450.0,0.00019575,2]
[360164396,1746585044435,-450.0,0.00019575,2]
[360164397,1746585044445,-450.0,0.00019575,2]
[360164398,1746585044454,-450.0,0.00019575,2]
[360164399,1746585044462,-606.35,0.00019575,2]
[360164400,1746585044472,-450.0,0.00019575,2]
[360164401,1746585044481,-450.0,0.00019575,2]
[360164402,1746585044490,-584.09,0.00019575,2]
[360164403,1746585044500,-450.0,0.00019575,2]
[360164404,1746585044510,-450.0,0.00019575,2]
[360164405,1746585044519,-450.0,0.00019575,2]
[360164406,1746585044529,-450.0,0.00019575,2]
[360164407,1746585044539,-976.64,0.00019575,2]
[360164408,1746585044550,-981.84,0.00019575,2]
[360164409,1746585044559,-450.0,0.00019575,2]
[360164410,1746585044569,-450.0,0.00019575,2]
[360164411,1746585044578,-569.78,0.00019575,2]
[360164412,1746585044587,-469.94,0.00019575,2]
[360164413,1746585044596,-1269.26,0.00019575,2]
[360164414,1746585044606,-450.0,0.00019575,2]
[360164415,1746585044615,-151.0,0.00019576,2]
[360164416,1746585044624,-151.0,0.00019576,2]
[360164417,1746585044634,-151.0,0.00019576,2]
[360164418,1746585044644,-151.0,0.00019576,2]
[360164419,1746585044654,-300.065309,0.00019576,2]
[360164420,1746585044664,-450.0,0.00019576,2]
[360164421,1746585044675,-450.0,0.00019576,2]
[360164422,1746585044685,-450.0,0.00019576,2]
[360164423,1746585044694,-450.0,0.00019576,2]
[360164424,1746585044703,-450.0,0.00019576,2]
[360164425,1746585044713,-450.0,0.00019576,2]
[360164426,1746585044722,-463.95,0.00019576,2]
[360164427,1746585044731,-450.0,0.00019576,2]
[360164428,1746585044740,-450.0,0.00019576,2]
[360164429,1746585044750,-450.0,0.00019576,2]
[360164430,1746585044759,-450.0,0.00019576,2]
[360164431,1746585044768,-438.57668125,0.00019576,2]
[360164432,1746585044778,-450.0,0.00019576,2]
[360164433,1746585044787,-450.0,0.00019576,2]
[360164434,1746585044797,-450.0,0.00019576,2]
[360164435,1746585044806,-450.0,0.00019576,2]
[360164436,1746585044815,-450.0,0.00019576,2]
[360164437,1746585044825,-450.0,0.00019576,2]
[360164438,1746585044835,-450.0,0.00019576,2]
[360164439,1746585044844,-628.9,0.00019576,2]
[360164440,1746585044853,-450.0,0.00019576,2]
[360164441,1746585044862,-744.52,0.00019576,2]
[360164442,1746585044871,-786.67,0.00019576,2]
[360164443,1746585044880,-450.0,0.00019576,2]
[360164444,1746585044890,-450.0,0.00019576,2]
[360164445,1746585044899,-450.0,0.00019576,2]
[360164446,1746585044908,-450.0,0.00019576,2]
[360164447,1746585044918,-450.0,0.00019576,2]
[360164448,1746585044928,-450.0,0.00019576,2]
[360164449,1746585044937,-450.0,0.00019576,2]
[360164450,1746585044946,-487.27,0.00019576,2]
[360164451,1746585044955,-450.0,0.00019576,2]
[360164452,1746585044964,-450.0,0.00019576,2]
[360164453,1746585044972,-450.0,0.00019576,2]
[360164454,1746585044982,-962.53,0.00019576,2]
[360164455,1746585044991,-450.0,0.00019576,2]
[360164456,1746585045000,-1019.78,0.00019576,2]
[360164457,1746585045013,-450.0,0.00019576,2]
[360164458,1746585045023,-450.0,0.00019576,2]
[360164459,1746585045032,-450.0,0.00019576,2]
[360164460,1746585045043,-591.55,0.00019576,2]